Cogmind - Beta 16 @@@ ROGUE MODE // 2025.10.26 @ 21:00:46 Player: Lazz Result: Destroyed by as-61625 with Assembled Rifle Performance ------------- Evolutions (1) 500 Regions Visited (3) 600 Robots Destroyed (31) 155 Value Destroyed (631) 631 Prototype IDs (1) 20 Alien Tech Used (0) 0 Bonus (0) 0 TOTAL SCORE: 1906 Bonus ------- None Cogmind --------- Core Integrity 0/400 Matter 255/300 Energy 100/100 System Corruption 4% Temperature Danger (402) Movement Walking (120) Location -9/Mines Parts ------- > --- POWER (1) -------- (None) > --- PROPULSION (2) --- Aluminum Leg > --- UTILITY (4) ------ Improved Targeting Computer > --- WEAPON (2) ------- (None) > --- INVENTORY (5) ---- Deuterium Engine Deuterium Engine Light Nuclear Core Improved Signal Interpreter Hacking Suite Peak State ------------ > --- POWER ------------ Cooled Ion Engine > --- PROPULSION ------- Aluminum Leg Aluminum Leg > --- UTILITY ---------- Small Storage Unit Improved Targeting Computer Improved Targeting Computer Medium Armor Plating > --- WEAPON ----------- Particle Cannon Particle Cannon > --- INVENTORY -------- Deuterium Engine Deuterium Engine Deuterium Engine Deuterium Engine Improved Signal Interpreter Medium Armor Plating Hacking Suite Particle Gun [Rating: 18] Favorites ----------- Power Cooled Ion Engine Engine Cooled Ion Engine Propulsion Aluminum Leg Treads Light Treads Leg Aluminum Leg Utility Small Storage Unit Device Seismic Detector Storage Small Storage Unit Processor Improved Targeting Computer Protection Medium Armor Plating Weapon Particle Cannon Energy Gun Particle Gun Energy Cannon Particle Cannon Ballistic Gun Light Assault Rifle Build | -11 -10 -9 -9 ------- Run | Yrd Mat Mat Min Slots Evolved 2 | . . 2 . Power . | . . . . Propulsion . | . . . . Utility 2 | . . 2 . Weapon . | . . . . Parts Attached 33 | 10 14 4 5 Power 6 | 2 3 . 1 Engine 6 | 2 3 . 1 Core . | . . . . Reactor . | . . . . Propulsion 9 | 4 2 2 1 Treads 2 | 2 . . . Leg 7 | 2 2 2 1 Wheel . | . . . . Hover . | . . . . Flight . | . . . . Utility 7 | 2 2 2 1 Device 1 | 1 . . . Storage 1 | 1 . . . Processor 2 | . . 2 . Hackware . | . . . . Protection 3 | . 2 . 1 Artifact . | . . . . Weapon 11 | 2 7 . 2 Energy Gun 7 | 1 4 . 2 Energy Cannon 2 | . 2 . . Ballistic Gun 2 | 1 1 . . Ballistic Cannon . | . . . . Launcher . | . . . . Special Weapon . | . . . . Impact Weapon . | . . . . Slashing Weapon . | . . . . Piercing Weapon . | . . . . Special Melee Weapon . | . . . . Unidentified Prototypes 1 | . 1 . . Parts Lost 13 | 2 1 . 10 Power 2 | 1 . . 1 Propulsion 2 | . . . 2 Utility 4 | . . . 4 Weapon 5 | 1 1 . 3 Highest Loss Streak 7 | 2 1 . 7 To Critical Strikes . | . . . . Average Backups 5 | 2 4 6 7 Power 2 | . 2 3 4 Propulsion . | 1 . . . Utility 1 | . 1 2 2 Weapon . | . 1 1 . Tool/Special . | . . . . Unused Backups 9 | . . 3 6 Power 7 | . . 3 4 Propulsion . | . . . . Utility 2 | . . . 2 Weapon . | . . . . Tool/Special . | . . . . Average Slot Usage (%) 95 | . 97 99 91 Engine 12 | . 14 11 11 Treads 6 | . 14 . . Leg 16 | . 14 22 17 Device 3 | . 7 . . Storage 12 | . 14 11 10 Processor 11 | . . 21 21 Protection 8 | . 7 11 9 Energy Gun 8 | . 13 . 5 Energy Cannon 10 | . 2 22 15 Ballistic Gun 4 | . 9 . . Peak Build Rating 18 | 7 13 18 18 Average Rating 12 | 4 9 17 16 On Entrance 9 | . 6 13 18 Avg Prop Armor Cover (%) . | . . . . Naked Turns . | . . . . Heaviest Build 28 | 14 28 28 28 Greatest Support 40 | 40 40 20 20 Greatest Overweight (x) 3 | 3 1 1 2 Average Overweight (x) . | . . 1 1 Largest Inventory Capacity 8 | 8 8 8 8 Average Capacity 7 | 7 8 8 7 Most Carried 8 | 6 8 8 8 Average Carried 5 | 2 4 6 7 Final Capacity 8 | 8 8 8 5 Final Carried 8 | 1 8 8 5 Class Distribution -------------------- 100% | Mutant Dominant Class ---------------- Mutant | -10/Materials Mutant | -9/Materials Mutant | -9/Mines Resources | -11 -10 -9 -9 ----------- Run | Yrd Mat Mat Min Matter Collected 591 | 268 147 136 40 Remotely . | . . . . Salvage Created 1007 | 98 320 199 390 Parts 57 | 3 25 15 14 Haulers Intercepted . | . . . . Recyclers Shooed . | . . . . Parts Field Recycled . | . . . . Retrieved Matter . | . . . . Parts Self-Destructed . | . . . . Prevented . | . . . . Parts Restored . | . . . . Kills | -11 -10 -9 -9 ------- Run | Yrd Mat Mat Min Combat Hostiles Destroyed 29 | . 10 6 13 Guns 14 | . 10 . 4 Cannons 14 | . . 6 8 Classes Destroyed 9 | 2 4 2 1 Worker 2 | . 1 . 1 Tunneler 1 | 1 . . . Recycler 1 | 1 . . . Operator 1 | . . 1 . Watcher 1 | . 1 . . Swarmer 13 | . 6 3 4 Grunt 9 | . 4 2 3 Sentry 3 | . . 1 2 Assembled 4 | . . . 4 Best Kill Streak 5 | 2 5 4 5 Combat Bots Only 5 | . 5 4 4 Max Kills in Single Turn 2 | 1 2 1 2 Gunslinging 1 | . 1 . . Exploded . | . . . . Melee . | . . . . Uniques/NPCs Destroyed . | . . . . Combat | -11 -10 -9 -9 -------- Run | Yrd Mat Mat Min Hostile Shots Fired 205 | . 74 14 117 Missed 39 | . 16 4 19 Hits 166 | . 58 10 98 Melee 6 | . . . 6 Projectile 160 | . 58 10 92 Critical Strikes 4 | . . . 4 Part Disruptions 1 | . . . 1 Damage Taken 2212 | 328 539 102 1243 Core 570 | 61 97 16 396 Absorbed by Shields . | . . . . Core Remaining (%) 55 | 75 36 . . Volleys Fired 91 | 7 46 9 29 Largest 2 | 2 2 2 2 Hottest 136 | 60 130 136 136 Shots Fired 164 | 14 80 18 52 Gun 105 | 14 80 . 11 Cannon 59 | . . 18 41 Launcher . | . . . . Special . | . . . . Kinetic 68 | 7 61 . . Thermal 78 | . 8 18 52 Explosive . | . . . . Electromagnetic 18 | 7 11 . . Robot Hit Streak 7 | 7 6 6 5 Robot Miss Streak 7 | 1 4 3 7 Penetration Max . | . . . . Secondary Targets 1 | . 1 . . Max Gunslinging Chain 1 | . 1 . . Shots Hit Robots 84 | 9 43 9 23 Core Hits 45 | 3 20 7 15 Critical Kills 1 | . . . 1 Critical Parts Destroyed . | . . . . Critical Strikes 3 | . 2 . 1 Burn 1 | . 1 . . Meltdown 1 | . . . 1 Corrupt 1 | . 1 . . Melee Attacks . | . . . . Impact . | . . . . Slashing . | . . . . Piercing . | . . . . Sneak Attacks . | . . . . Combat Hostiles . | . . . . Follow-up Attacks . | . . . . Damage Inflicted 1274 | 121 429 182 542 Guns 637 | 95 429 . 113 Cannons 611 | . . 182 429 Explosions 26 | 26 . . . Melee . | . . . . Ramming . | . . . . Kinetic 280 | 40 240 . . Thermal 846 | 26 96 182 542 Explosive . | . . . . Electromagnetic 148 | 55 93 . . Impact . | . . . . Slashing . | . . . . Piercing . | . . . . Highest Corruption 8 | 6 8 . 4 Average Corruption 6 | 6 6 . 4 Corruption Purged . | . . . . Corruption Blocked . | . . . . Effects 13 | 2 11 . . Message Errors 4 | 2 2 . . Matter Fused 2 | . 2 . . Heat Flow Errors 3 | . 3 . . Energy Discharges 2 | . 2 . . Data Loss (minor) 1 | . 1 . . Data Loss (major) 1 | . 1 . . Overload Shots . | . . . . Overflow Damage 15 | . . . 15 Projectiles 15 | . . . 15 Explosions . | . . . . Melee . | . . . . Knockbacks . | . . . . Impact . | . . . . Kinetic . | . . . . Secondary . | . . . . Self-Inflicted Damage 25 | 25 . . . Shots 1 | 1 . . . Rammed . | . . . . Targets Rammed . | . . . . Kicked . | . . . . Crushed . | . . . . Highest Temperature 732 | 52 216 345 732 Average Temperature 209 | 23 77 138 343 Received Heat Transfer 499 | . 144 21 334 Effects 28 | . . . 28 Shutdowns 8 | . . . 8 Energy Bleed 5 | . . . 5 Interference 2 | . . . 2 Matter Decay 1 | . . . 1 Short Circuit 2 | . . . 2 Damage (minor) 2 | . . . 2 Damage (major) 6 | . . . 6 Damage (core) 2 | . . . 2 Siege Activations . | . . . . Martial Activations . | . . . . Shielding Activations . | . . . . Robots Disrupted . | . . . . Combat Hostiles . | . . . . Robots Corrupted . | . . . . Combat Hostiles . | . . . . Parts Fried . | . . . . Impact Corruptions . | . . . . Robots Melted 1 | . . . 1 Combat Hostiles 1 | . . . 1 Parts Melted 6 | . . . 6 Heat Transferred 1715 | 50 296 333 1036 Parts Sabotaged . | . . . . Parts Stolen . | . . . . Parts Stripped . | . . . . Power Chain Reactions 1 | 1 . . . Alert | -11 -10 -9 -9 ------- Run | Yrd Mat Mat Min Maximum Alert Level . | . . . . Low Security (%) 100 | 100 100 100 100 Level 1 . | . . . . Level 2 . | . . . . Level 3 . | . . . . Level 4 . | . . . . Level 5 . | . . . . High Security . | . . . . Max Security . | . . . . Peak Influence 131 | 10 107 131 122 Initial 31 | . . 11 31 Average 46 | . 49 64 55 Influence Increases 615 | 10 242 156 207 Destroy 0b10 Robot/C 500 | . 200 120 180 Destroy 0b10 Robot/NC 30 | 10 10 5 5 Destroy Leader 82 | . 32 30 20 Destroy Structure 3 | . . 1 2 Influence Decreases 615 | 10 214 103 288 Entered New Map 67 | . . 17 50 Time Decay 451 | 10 204 86 151 Lost Part 97 | . 10 . 87 Squads Dispatched 3 | . 1 2 . Investigation . | . . . . Extermination . | . . . . Reinforcement 3 | . 1 2 . Assault . | . . . . Garrison . | . . . . Intercept . | . . . . Searches Triggered . | . . . . Construction Impeded . | . . . . Haulers Reinforced . | . . . . Active Scanning Responses . | . . . . Cargo Convoy Interrupts . | . . . . Stealth | -11 -10 -9 -9 --------- Run | Yrd Mat Mat Min Distress Signals 2 | . 1 . 1 Communications Jammed . | . . . . Distress Signals . | . . . . Times Spotted 47 | . 15 6 26 Peak Tracking Total 15 | . 4 5 15 Tactical Retreats . | . . . . Traps | -11 -10 -9 -9 ------- Run | Yrd Mat Mat Min Traps Triggered 2 | . 2 . . Indirectly . | . . . . Trap Hack Attempts . | . . . . Triggered . | . . . . Disarmed . | . . . . Reprogrammed . | . . . . Reused . | . . . . Traps Extracted . | . . . . Installed . | . . . . Triggered . | . . . . Machines | -11 -10 -9 -9 ---------- Run | Yrd Mat Mat Min Machines Disabled 1 | . . . 1 Max in Single Turn 1 | . . . 1 Machines Repaired . | . . . . Machines Dismantled . | . . . . Machines Sabotaged . | . . . . Overloaded Fab Kills . | . . . . Hacking | -11 -10 -9 -9 --------- Run | Yrd Mat Mat Min Machines Accessed . | . . . . Terminals . | . . . . Fabricators . | . . . . Repair Stations . | . . . . Recycling Units . | . . . . Scanalyzers . | . . . . Garrison Access . | . . . . Total Hacks . | . . . . Successful . | . . . . Failed . | . . . . Catastrophic . | . . . . Database Lockouts . | . . . . Manual . | . . . . Terminals . | . . . . Fabricators . | . . . . Repair Stations . | . . . . Recycling Units . | . . . . Scanalyzers . | . . . . Garrison Access . | . . . . Terminal Hacks . | . . . . Fabricator Hacks . | . . . . Repair Station Hacks . | . . . . Recycling Unit Hacks . | . . . . Scanalyzer . | . . . . Garrison Access Hacks . | . . . . Unauthorized Hacks . | . . . . Terminals . | . . . . Fabricators . | . . . . Repair Stations . | . . . . Recycling Units . | . . . . Scanalyzers . | . . . . Garrison Access . | . . . . Data Cores Recovered . | . . . . Used . | . . . . Hacking Detections . | . . . . Full Trace Events . | . . . . Feedback Events . | . . . . Feedback Blocked . | . . . . Robot Schematics Acquired . | . . . . Robots Built . | . . . . Authchips . | . . . . Time . | . . . . Total Robot Build Rating . | . . . . Part Schematics Acquired . | . . . . Parts Built . | . . . . Authchips . | . . . . Time . | . . . . Total Part Build Rating . | . . . . Part Studies Acquired . | . . . . Parts Repaired . | . . . . Time . | . . . . Parts Recycled . | . . . . Recycled Matter . | . . . . Retrieved Matter . | . . . . Retrieved Components . | . . . . Parts Scanalyzed . | . . . . Part Schematics Acquired . | . . . . Parts Damaged . | . . . . Bothacking | -11 -10 -9 -9 ------------ Run | Yrd Mat Mat Min Used RIF Installer . | . . . . Robots Hacked . | . . . . Non-combat . | . . . . Combat . | . . . . Robot Hacks Applied . | . . . . Relay Couplers Released . | . . . . Fabnet Peak Effective % . | . . . . Robots Rewired . | . . . . Allies Hacked . | . . . . Hacks Repelled . | . . . . Allies | -11 -10 -9 -9 -------- Run | Yrd Mat Mat Min Total Allies . | . . . . Largest Group . | . . . . Highest-Rated Group . | . . . . Highest-Rated Ally . | . . . . Total Orders . | . . . . Ally Attacks . | . . . . Total Damage . | . . . . Kills . | . . . . Allies Corrupted . | . . . . Allies Melted . | . . . . Intel | -11 -10 -9 -9 ------- Run | Yrd Mat Mat Min Active Infowar (turns) 291 | 61 230 . . Seismic 291 | 61 230 . . Robot Analysis Total . | . . . . Derelict Logs Recovered 1 | . . . 1 Drone Launches . | . . . . Drone Recoveries . | . . . . Exploration | -11 -10 -9 -9 ------------- Run | Yrd Mat Mat Min Turns Passed 1157 | 170 472 186 329 Spaces Moved 437 | 85 177 75 100 Core 30 | 30 . . . Treads 92 | 30 62 . . Legs 315 | 25 115 75 100 Wheels . | . . . . Hover . | . . . . Flight . | . . . . Fastest Speed 50 | 50 120 190 120 Average Speed 183 | 151 177 190 216 Slowest Speed 260 | 200 190 190 260 Overloaded Moves . | . . . . Propulsion Burnouts . | . . . . Robots Hopped . | . . . . Potential Cave-ins . | . . . . Cave-ins Triggered 1 | 1 . . . Exploration Rate (%) 16 | 5 28 7 26 Regions Visited 3 Branch Regions 1 Pre-discovered Areas . | . . . . Known Exits Taken . | . . . . Unknown Exits Taken 3 | 1 1 1 . Scrap Searched . | . . . . Spaces Dug . | . . . . Terrain Destroyed 3 | 3 . . . Melee . | . . . . Projectile . | . . . . AOE 3 | 3 . . . Terrain Rammed . | . . . . Walls Destroyed . | . . . . Machines Disabled . | . . . . Actions | -11 -10 -9 -9 --------- Run | Yrd Mat Mat Min Total 643 | 114 267 103 159 Wait 30 | . 5 3 22 Move 434 | 84 176 74 100 Hop . | . . . . Pick Up 37 | 11 17 7 2 Fast Attach 4 | . 3 . 1 Attach 18 | 8 6 2 2 Detach . | . . . . Swap 11 | 2 5 2 2 Drop 18 | 2 9 6 1 Fire 91 | 7 46 9 29 Melee . | . . . . Ram . | . . . . Kick . | . . . . Crush . | . . . . Escape Stasis . | . . . . Rewire . | . . . . Trap . | . . . . Miscellaneous . | . . . . Route ------- -11/Scrapyard -10/Materials -9/Materials -9/Mines History --------- Turn | Location | Event 22 | -11/Scrapyard | Discovered new exit (range 16) 114 | -11/Scrapyard | Crushed by falling debris 171 | -11/Scrapyard | Entered Materials 284 | -10/Materials | Core integrity fell below 50% 302 | -10/Materials | Build established: Mutant 559 | -10/Materials | Discovered new exit (range 15) 643 | -10/Materials | Entered another Materials area 643 | -9/Materials | Evolved 2 slots: Utility x2 725 | -9/Materials | Discovered new exit (range 15) 829 | -9/Materials | Entered Mines 1116 | -9/Mines | Assembled infested the area 1121 | -9/Mines | Assisted by a Guerilla fighting off Assembled 1131 | -9/Mines | Core integrity fell below 50% 1154 | -9/Mines | Core integrity fell below 20% 1158 | -9/Mines | Destroyed by as-61625 with Assembled Rifle Last Messages --------------- Aluminum Leg destroyed. as-76615 suffers critical hit (Destroy). as-76615 destroyed. 5P-MTZ(h) system corrupted by crushing effect. 5P-MTZ(h) knocked back. 5P-MTZ(h) system terminally corrupted. as-10298 destroyed. Sml. Storage Unit destroyed. as-78835 destroyed. Critical hit (Burn: +80). Power failure, Deuterium Engine shutdown. Imp. Targeting Computer destroyed. Med. Armor Plating destroyed. System corrupted by crushing effect (+1). System corrupted by crushing effect (+3). Overheating: Matter decay (-60). Power failure, Deuterium Engine shutdown. Deuterium Engine destroyed. Particle Cannon destroyed. Particle Gun destroyed. Map ----- +----------------------------------------------------+ | ?????????????#"" # ##? #???????? | | ?????????????## ## #?? #???????? | | ??????????????#### ##?? ????????? | | ?????????????????# ###???#????????? | | ?????????????????# #??????????????? | | ?????????????????# #??????????????? | | ?????????????????# #??????????????? | | ?????????????????# %#??????????????? | | ?????????????????# #??????????????? | | ?????????????????# #??????????????? | | ?????????????????# #??????????????? | | ???????########### #??????????????? | | ???????# #??????????????? | | ???????# #??????????????? | | ???????# ###########??????????????? | | ???????# #????????????????????????? | | ???????# #????????????????????????? | | ???????# #????????????????????????? | | ???????# ##???????????????????????? | | ???????# ##??????????????????????? | | ???????# % *##?????????????????????? | | ???????# =a* #?????????????????????? | | ???????# % aa#?????????????????????? | | ???????#% aa##?????????????????????? | | ???????#a%a;#??????????????????????? | | ???????# a@#??????????????????????? | | ???????# % #??????????????????????? | | ???????## #??????????????????????? | | ???????#;% ;??????????????????????? | | ???????#; a ;??????????????????????? | | ???????#;a #;??????????????????????? | | ???????##|!? ??????????????????????? | | ????????!%%?##?????????????????????? | | ????????*==????????????????????????? | | ??????? ! ????????????????????????? | | ??????? ????????????????????????? | | ??????? ????????????????????????? | | ?????? #????????????????????????? | | ?????? #?????????????????????????? | | ??????? ??????????????????????????? | | ???????????????????????????????????? | | ???????????????????????????????????? | | ???????????????????????????????????? | | ???????????????????????????????????? | | ???????????????????????????????????? | | ???????????????????????????????????? | | | | | | | | | +----------------------------------------------------+ Best States ------------- Heat Dissipation 28 Energy Generation 14 Energy Capacity 280 Matter Stores 300 Matter Capacity 300 Sight Range 16 Terrain Scan Density 10 Armor Coverage 225 Evasion (%) 55 Targeting Accuracy 12 Recoil Reduction 2 Item Schematics ----------------- None Robot Schematics ------------------ None Fabricated ------------ Nothing Repaired ---------- Nothing Studied --------- None Alien Tech Used ----------------- None Achievements -------------- Ghost 'Em Challenges ------------ None Game ------ Seed SuperquantumAblativeSabre Manual? 0 Play Time 00:18:59 Cumulative 26.4 hours Start 2025.10.26 @ 20:41:56 End 2025.10.26 @ 21:00:46 Sessions 1 Manual Loads 0 Difficulty Rogue Special Mode None Game No. 33 Rogue 33 Adventurer 0 Explorer 0 Win Type - Total 0 Types 0/0/0/0/0/0/0/0/0/0 Lore% 18 Gallery% 26 Achievement% 19 Wizard Run 0 Options --------- Layout 2 ASCII 0 Keyboard 0 Movement Mouse Keybinds 0 Fullscreen 1 Font 16/SmallcapsGlow Map View 25x24 Zoom Use 99% Tactical HUD 0 Map Filters NONE Filters NONE Steam SD RUN: bbeb3f13-2546-43f9-893f-12de347954e3